bitfinex/quotes_SOLUSD_20250106
["timestamp","ask_amount","ask_price","bid_price","bid_amount"]
[1736199900485,8.90333371,218.03,217.97,8.90333371]
[1736199901384,10.22507722,218.12,218.02,8.90333371]
[1736199901593,8.90333371,218.09,218.03,2.02]
[1736199901794,8.90333371,218.1,218.03,10.92333371]
[1736199902500,8.90333371,218.09,218.03,2.02]
[1736199902712,8.90333371,218.07,218.03,2.02]
[1736199903116,8.90333371,218.08,218.03,2.02]
[1736199903310,8.90333371,218.07,218.01,20.0]
[1736199903628,8.90333371,218.02,217.99,2.02]
[1736199903802,8.90333371,218.0,217.99,2.02]
[1736199904003,23.776884,218.11,217.99,2.02]
[1736199904213,8.90333371,218.02,217.99,2.02]
[1736199904999,23.776884,218.12,217.99,2.02]
[1736199905205,40.61333484,218.13,217.99,2.02]
[1736199905206,8.90333371,218.03,217.99,2.02]
[1736199906600,8.90333371,218.0,217.96,20.0]
[1736199906809,8.90333371,217.99,217.97,2.02]
[1736199907924,8.90333371,218.0,217.97,2.02]
[1736199909327,1.614,218.06,217.97,2.02]
[1736199909504,8.90333371,218.05,217.98,8.90333371]
[1736199909940,8.90333371,218.04,217.97,10.92333371]
[1736199911126,8.90333371,218.05,217.97,10.92333371]
[1736199912814,23.776884,218.1,217.99,8.90333371]
[1736199913119,8.90333371,218.06,217.99,8.90333371]
[1736199913517,8.90333371,218.05,217.98,8.90333371]
[1736199913709,8.90333371,218.04,217.97,2.02]
[1736199913945,23.776884,218.1,218.02,8.90333371]
[1736199913946,8.90333371,218.1,218.02,8.90333371]
[1736199914229,8.90333371,218.1,218.03,8.90333371]
[1736199914429,8.90333371,218.1,218.04,2.02]
[1736199914633,8.90333371,218.09,218.04,2.02]
[1736199914931,8.90333371,218.09,218.01,15.53633371]
[1736199915318,8.90333371,218.09,218.02,2.02]
[1736199916104,8.90333371,218.06,218.02,2.02]
[1736199916312,8.90333371,218.04,218.01,2.02]
[1736199916622,8.90333371,218.02,217.96,6.2254]
[1736199916827,8.90333371,217.99,217.96,6.2254]
[1736199917136,8.90333371,217.98,217.93,2.02]
[1736199917338,8.90333371,217.98,217.95,20.0]
[1736199917643,8.90333371,217.99,217.93,2.02]
[1736199918017,11.4651,218.06,217.95,8.90333371]
[1736199918219,8.90333371,218.03,217.96,8.90333371]
[1736199918517,8.90333371,218.02,217.94,20.0]
[1736199918822,8.90333371,218.02,217.95,8.90333371]
[1736199919020,8.90333371,218.02,217.96,8.90333371]
[1736199919844,8.90333371,218.04,217.97,8.90333371]
[1736199920208,1.5802,218.08,217.98,8.90333371]
[1736199920628,8.90333371,218.05,217.98,8.90333371]
[1736199921223,8.90333371,218.06,217.99,8.90333371]
[1736199922026,8.90333371,218.05,217.98,8.90333371]
[1736199923356,47.07443484,218.13,218.01,8.90333371]
[1736199923524,8.90333371,218.07,218.01,8.90333371]
[1736199925141,8.90333371,218.06,218.0,2.06]
[1736199925328,8.90333371,218.05,218.0,2.06]
[1736199927217,8.90333371,218.06,218.0,2.06]
[1736199927441,8.90333371,218.06,218.02,20.0]
[1736199927638,8.90333371,218.07,218.02,20.0]
[1736199927939,8.90333371,218.08,218.02,20.0]
[1736199928957,1.5278,218.14,218.02,28.90333371]
[1736199929144,8.90333371,218.09,218.02,28.90333371]
[1736199933134,8.90333371,218.11,218.04,8.90333371]
[1736199934446,8.90333371,218.12,218.05,8.90333371]
[1736199937931,8.90333371,218.13,218.06,8.90333371]
[1736199938142,8.90333371,218.13,218.07,6.506]
[1736199938849,20.0,218.18,218.07,6.506]
[1736199939148,8.90333371,218.15,218.08,8.90333371]
[1736199940236,8.90333371,218.16,218.09,8.90333371]
[1736199940737,8.90333371,218.15,218.08,8.90333371]
[1736199941567,8.90333371,218.15,218.07,17.46933371]
[1736199941754,8.90333371,218.15,218.08,8.90333371]
[1736199941927,8.90333371,218.14,218.07,17.46933371]
[1736199946462,8.90333371,218.13,218.07,8.566]
[1736199947349,1.5285,218.19,218.07,8.566]
[1736199947555,8.90333371,218.15,218.09,8.90333371]
[1736199949174,8.90333371,218.16,218.09,8.90333371]
[1736199952462,11.4578,218.2,218.12,8.90333371]
[1736199952663,8.90333371,218.19,218.12,8.90333371]
[1736199953363,8.90333371,218.18,218.11,8.90333371]
[1736199954572,8.90333371,218.17,218.11,8.90333371]
[1736199955758,8.90333371,218.18,218.11,8.90333371]
[1736199956961,11.4558,218.23,218.13,8.90333371]
[1736199957154,8.90333371,218.21,218.15,8.90333371]
[1736199957766,1.6266,218.25,218.15,8.90333371]
[1736199958067,1.6266,218.25,218.18,8.90333371]
[1736199958068,8.90333371,218.25,218.18,8.90333371]
[1736199958265,11.4527,218.29,218.18,8.90333371]
[1736199958661,8.90333371,218.26,218.19,8.90333371]
[1736199959058,11.4527,218.29,218.19,8.90333371]
[1736199959285,8.90333371,218.26,218.19,8.90333371]
[1736199959691,8.90333371,218.24,218.16,23.776884]
[1736199959869,8.90333371,218.26,218.19,8.90333371]
[1736199960063,8.90333371,218.26,218.2,8.90333371]
[1736199960979,8.90333371,218.26,218.19,8.90333371]
[1736199963271,1.6014,218.3,218.19,8.90333371]
[1736199963597,8.90333371,218.28,218.21,8.90333371]
[1736199964392,8.90333371,218.29,218.22,8.90333371]
[1736199964791,8.90333371,218.29,218.22,15.42943371]
[1736199964986,8.90333371,218.3,218.23,8.90333371]
[1736199965301,1.6166,218.35,218.26,8.90333371]
[1736199965509,8.90333371,218.33,218.26,8.90333371]
[1736199965989,19.3622,218.4,218.27,8.90333371]
[1736199966191,8.90333371,218.35,218.28,8.90333371]
[1736199966804,8.90333371,218.33,218.26,20.0]
[1736199967112,13.0362,218.4,218.26,20.0]
[1736199967113,8.90333371,218.31,218.26,20.0]
[1736199967501,8.90333371,218.32,218.26,20.0]
[1736199968104,8.90333371,218.34,218.27,8.90333371]
[1736199969377,8.90333371,218.34,218.26,20.0]
[1736199969378,13.0362,218.4,218.28,10.94333371]
[1736199969576,8.90333371,218.35,218.28,10.94333371]
[1736199970702,8.90333371,218.34,218.28,2.04]
[1736199970877,23.776884,218.39,218.25,20.0]
[1736199971078,20.0,218.37,218.25,20.0]
[1736199971278,8.90333371,218.32,218.25,28.90333371]
[1736199971507,8.90333371,218.32,218.25,20.0]
[1736199971722,8.90333371,218.32,218.25,28.90333371]
[1736199972702,8.90333371,218.33,218.27,8.90333371]
[1736199973111,8.90333371,218.34,218.27,8.90333371]
[1736199974816,8.90333371,218.33,218.26,8.90333371]
[1736199975529,8.90333371,218.32,218.25,28.90333371]
[1736199975887,8.90333371,218.33,218.26,8.90333371]
[1736199976084,8.90333371,218.33,218.27,8.90333371]
[1736199976309,13.0362,218.4,218.28,8.90333371]
[1736199976616,8.90333371,218.35,218.28,8.90333371]
[1736199977621,13.0362,218.4,218.29,8.90333371]
[1736199977819,8.90333371,218.35,218.29,8.90333371]
[1736199978822,8.90333371,218.35,218.25,38.338844]
[1736199979030,8.90333371,218.35,218.28,8.90333371]
[1736199979919,8.90333371,218.34,218.28,8.90333371]
[1736199980228,8.90333371,218.31,218.25,47.24217771]
[1736199980906,8.90333371,218.31,218.25,38.338844]
[1736199981114,8.90333371,218.28,218.22,8.0653]
[1736199981308,8.90333371,218.28,218.22,10.1053]
[1736199981605,8.90333371,218.28,218.22,8.0653]
[1736199982631,8.90333371,218.29,218.22,16.96863371]
[1736199983213,47.06323484,218.35,218.22,8.0653]
[1736199983214,8.90333371,218.28,218.22,8.0653]
[1736199983521,8.90333371,218.26,218.22,8.0653]
[1736199984892,8.90333371,218.23,218.17,1.6324]
[1736199985098,8.90333371,218.21,218.17,1.6324]
[1736199985913,8.90333371,218.22,218.17,1.6324]
[1736199986119,8.90333371,218.23,218.17,10.53573371]
[1736199987725,23.776884,218.31,218.19,8.90333371]
[1736199987922,8.90333371,218.26,218.19,8.90333371]
[1736199988125,8.90333371,218.25,218.19,8.90333371]
[1736199988839,8.90333371,218.25,218.18,8.90333371]
[1736199989014,8.90333371,218.23,218.17,1.6324]
[1736199989212,1.5709,218.33,218.16,8.6111]
[1736199989213,8.90333371,218.21,218.16,8.6111]
[1736199990127,8.90333371,218.2,218.14,2.04]
[1736199990320,8.90333371,218.2,218.14,10.94333371]
[1736199990519,8.90333371,218.2,218.14,20.0]
[1736199991130,8.90333371,218.21,218.14,28.90333371]
[1736199991336,8.90333371,218.22,218.15,8.90333371]
[1736199991936,8.90333371,218.21,218.15,8.90333371]
[1736199994043,8.90333371,218.21,218.14,28.90333371]
[1736199994940,8.90333371,218.2,218.13,10.94333371]
[1736199995126,8.90333371,218.18,218.11,8.90333371]
[1736199998946,8.90333371,218.17,218.1,10.94333371]
[1736199999328,8.90333371,218.18,218.11,8.90333371]
[1736200004059,23.776884,218.23,218.1,10.94333371]
[1736200004060,8.90333371,218.17,218.1,10.94333371]
[1736200004454,8.90333371,218.16,218.1,2.04]
[1736200009759,8.90333371,218.16,218.1,10.94333371]
[1736200010362,8.90333371,218.16,218.1,2.04]
[1736200011151,8.90333371,218.13,218.05,10.478334]
[1736200011365,8.90333371,218.1,218.03,22.38953371]
[1736200011536,8.90333371,218.1,218.06,20.0]
[1736200011861,8.90333371,218.11,218.07,20.0]
[1736200012346,8.90333371,218.12,218.07,20.0]
[1736200013369,8.90333371,218.13,218.06,28.90333371]
[1736200016389,8.90333371,218.15,218.09,8.90333371]
[1736200016746,8.90333371,218.15,218.08,8.90333371]
[1736200017671,8.90333371,218.15,218.06,20.0]
[1736200017964,8.90333371,218.15,218.08,8.90333371]
[1736200018969,8.90333371,218.14,218.08,8.90333371]
[1736200021174,1.5907,218.17,218.08,8.90333371]
[1736200021358,1.5907,218.17,218.07,8.2636]
[1736200021359,1.5825,218.22,218.13,8.90333371]
[1736200021708,8.90333371,218.2,218.14,8.90333371]
[1736200022663,8.90333371,218.2,218.13,8.90333371]
[1736200022882,8.90333371,218.19,218.12,8.90333371]
[1736200024472,8.90333371,218.19,218.13,8.90333371]
[1736200026588,8.90333371,218.2,218.13,8.90333371]
[1736200026778,8.90333371,218.21,218.14,8.90333371]
[1736200029048,11.4543,218.26,218.16,8.90333371]
[1736200029357,8.90333371,218.23,218.16,8.90333371]
[1736200029657,8.90333371,218.24,218.17,8.90333371]
[1736200030800,1.5032,218.27,218.17,8.90333371]
[1736200031075,8.90333371,218.26,218.2,8.90333371]
[1736200031973,8.90333371,218.23,218.16,6.4645]
[1736200032181,8.90333371,218.22,218.15,8.90333371]
[1736200032352,8.90333371,218.21,218.14,8.90333371]
[1736200034586,8.90333371,218.21,218.13,25.796884]
[1736200034875,8.90333371,218.2,218.13,10.92333371]
[1736200035471,8.90333371,218.21,218.14,8.90333371]
[1736200037987,8.90333371,218.23,218.16,8.90333371]
[1736200038360,8.90333371,218.24,218.16,8.90333371]
[1736200039697,1.5032,218.27,218.2,20.0]
[1736200039859,8.90333371,218.31,218.23,8.90333371]
[1736200040183,8.90333371,218.31,218.24,8.90333371]
[1736200042470,8.90333371,218.32,218.24,8.90333371]
[1736200043781,8.90333371,218.32,218.25,8.90333371]
[1736200043994,12.9737,218.4,218.28,8.90333371]
[1736200044277,8.90333371,218.36,218.28,8.90333371]
[1736200046885,1.5268,218.4,218.32,8.90333371]
[1736200047088,8.90333371,218.39,218.31,8.90333371]
[1736200047391,1.5268,218.4,218.3,8.90333371]
[1736200047392,8.90333371,218.37,218.3,8.90333371]
[1736200047888,8.90333371,218.38,218.31,28.90333371]
[1736200048670,8.90333371,218.39,218.32,8.90333371]
[1736200048858,1.5268,218.4,218.27,2.02]
[1736200048859,8.90333371,218.35,218.27,2.02]
[1736200049100,8.90333371,218.32,218.27,2.02]
[1736200049361,8.90333371,218.33,218.27,2.02]
[1736200049559,8.90333371,218.34,218.27,10.92333371]
[1736200049770,8.90333371,218.35,218.28,8.90333371]
[1736200051065,8.90333371,218.35,218.29,8.90333371]
[1736200051279,8.90333371,218.36,218.29,8.90333371]
[1736200051686,8.90333371,218.37,218.3,8.90333371]
[1736200052387,8.90333371,218.36,218.3,8.90333371]
[1736200053394,1.5268,218.4,218.32,8.90333371]
[1736200053595,8.90333371,218.4,218.33,8.90333371]
[1736200053895,8.90333371,218.39,218.32,8.90333371]
[1736200054287,8.90333371,218.4,218.33,8.90333371]
[1736200054470,8.90333371,218.39,218.32,8.90333371]
[1736200055190,8.90333371,218.4,218.33,8.90333371]
[1736200056693,8.90333371,218.38,218.29,1.5241]
[1736200056898,8.90333371,218.36,218.3,20.0]
[1736200057499,23.776884,218.43,218.3,8.90333371]
[1736200057500,8.90333371,218.37,218.3,8.90333371]
[1736200058501,8.90333371,218.36,218.29,28.90333371]
[1736200058699,8.90333371,218.34,218.29,20.0]
[1736200060215,8.90333371,218.35,218.29,20.0]
[1736200060999,8.90333371,218.36,218.29,28.90333371]
[1736200061203,8.90333371,218.35,218.29,20.0]
[1736200061695,8.90333371,218.35,218.28,8.90333371]
[1736200061902,8.90333371,218.33,218.26,17.36293371]
[1736200062401,8.90333371,218.34,218.27,8.90333371]
[1736200064204,8.90333371,218.33,218.26,17.36293371]
[1736200064419,25.383584,218.41,218.13,35.61333484]
[1736200064420,8.90333371,218.28,218.21,15.08663371]
[1736200064713,8.90333371,218.28,218.24,20.0]
[1736200065204,8.90333371,218.28,218.21,8.2033]
[1736200065390,8.90333371,218.25,218.21,2.02]
[1736200065981,8.90333371,218.27,218.21,2.02]
[1736200066405,1.52,218.33,218.21,2.02]
[1736200066714,8.90333371,218.29,218.22,8.90333371]
[1736200068886,8.90333371,218.3,218.23,8.90333371]
[1736200069497,8.90333371,218.31,218.24,8.90333371]
[1736200069689,8.90333371,218.32,218.25,8.90333371]
[1736200070197,8.90333371,218.31,218.24,8.90333371]
[1736200071510,8.90333371,218.32,218.25,8.90333371]
[1736200072792,8.90333371,218.3,218.24,8.90333371]
[1736200076325,8.90333371,218.31,218.24,8.90333371]
[1736200077331,8.90333371,218.3,218.24,8.90333371]
[1736200078420,8.90333371,218.31,218.24,8.90333371]
[1736200079845,11.4485,218.37,218.26,8.90333371]
[1736200080000,11.4485,218.37,218.29,8.90333371]
[1736200080205,8.90333371,218.36,218.29,8.90333371]
[1736200080806,8.90333371,218.36,218.3,8.90333371]
[1736200081121,8.90333371,218.37,218.3,8.90333371]
[1736200081318,1.5139,218.39,218.31,8.90333371]
[1736200081319,8.90333371,218.38,218.31,8.90333371]
[1736200083622,8.90333371,218.37,218.3,8.90333371]
[1736200085106,19.06865748,218.41,218.35,8.90333371]
[1736200085329,27.97199119,218.41,218.34,8.90333371]
[1736200085624,8.90333371,218.35,218.32,6.2901]
[1736200086928,8.90333371,218.35,218.3,20.0]
[1736200087118,8.90333371,218.36,218.3,20.0]
[1736200087323,8.90333371,218.37,218.3,28.90333371]
[1736200087720,19.06865748,218.41,218.3,28.90333371]
[1736200087721,8.90333371,218.38,218.32,8.90333371]
[1736200088027,8.90333371,218.39,218.32,8.90333371]
[1736200088196,8.90333371,218.4,218.33,8.90333371]
[1736200088399,8.90333371,218.4,218.34,8.90333371]
[1736200088640,8.90333371,218.4,218.33,8.90333371]
[1736200089027,8.90333371,218.4,218.34,8.90333371]
[1736200089223,19.06865748,218.41,218.35,8.90333371]
[1736200089727,27.97199119,218.41,218.34,15.18953371]
[1736200089930,8.90333371,218.39,218.34,6.2862]
[1736200092831,19.06865748,218.41,218.3,20.0]
[1736200092832,8.90333371,218.36,218.3,20.0]
[1736200093131,8.90333371,218.34,218.3,20.0]
[1736200093524,8.90333371,218.34,218.27,15.01173371]
[1736200094327,8.90333371,218.32,218.27,6.1084]
[1736200094930,8.90333371,218.33,218.27,15.01173371]
[1736200097135,8.90333371,218.34,218.27,15.01173371]
[1736200098640,8.90333371,218.35,218.28,8.90333371]
[1736200099043,8.90333371,218.34,218.27,15.01173371]
[1736200100425,8.90333371,218.36,218.29,8.90333371]
[1736200100630,8.90333371,218.35,218.28,8.90333371]
[1736200101742,8.90333371,218.34,218.27,15.01173371]
[1736200102945,8.90333371,218.35,218.28,8.90333371]
[1736200103148,1.6106,218.39,218.29,8.90333371]
[1736200103324,8.90333371,218.37,218.3,8.90333371]
[1736200103941,19.06865748,218.41,218.35,8.90333371]
[1736200104147,19.06865748,218.41,218.36,8.90333371]
[1736200105550,19.06865748,218.41,218.35,8.90333371]
[1736200105732,8.90333371,218.4,218.33,20.0]
[1736200105931,8.90333371,218.37,218.33,20.0]
[1736200106121,8.90333371,218.35,218.32,2.04]
[1736200106441,19.06865748,218.41,218.27,17.05173371]
[1736200106442,8.90333371,218.34,218.27,17.05173371]
[1736200109041,13.85206689,218.33,218.27,6.1084]
[1736200109651,13.85206689,218.34,218.27,19.96046689]
[1736200110144,13.85206689,218.34,218.28,37.62895089]
[1736200110327,13.85206689,218.38,218.32,13.85206689]
[1736200111953,13.85206689,218.39,218.32,13.85206689]
[1736200112352,13.85206689,218.38,218.32,13.85206689]
[1736200112547,13.85206689,218.38,218.31,33.85206689]
[1736200113459,32.92072437,218.41,218.34,13.85206689]
[1736200114164,13.85206689,218.4,218.33,13.85206689]
[1736200114351,13.85206689,218.39,218.32,15.89206689]
[1736200114538,13.85206689,218.39,218.32,2.04]
[1736200114845,13.85206689,218.38,218.32,2.04]
[1736200115046,13.85206689,218.4,218.34,13.85206689]
[1736200115253,19.06865748,218.41,218.36,13.85206689]
[1736200115758,19.06865748,218.41,218.35,13.85206689]
[1736200116147,19.06865748,218.41,218.36,13.85206689]
[1736200116358,19.06865748,218.41,218.35,13.85206689]
[1736200117861,19.06865748,218.41,218.36,13.85206689]
[1736200118563,19.06865748,218.41,218.35,13.85206689]
[1736200120174,13.85206689,218.38,218.31,33.85206689]
[1736200120383,13.85206689,218.38,218.31,35.89206689]
[1736200120876,13.85206689,218.38,218.32,13.85206689]
[1736200121060,13.85206689,218.39,218.32,13.85206689]
[1736200121785,13.85206689,218.4,218.33,13.85206689]
[1736200125870,13.85206689,218.4,218.32,13.85206689]
[1736200127272,13.85206689,218.38,218.31,35.89206689]
[1736200127574,13.85206689,218.36,218.29,13.85206689]
[1736200127963,13.85206689,218.37,218.32,20.0]
[1736200128158,13.85206689,218.38,218.32,20.0]
[1736200128669,13.85206689,218.4,218.33,13.85206689]
[1736200128994,8.85975497,218.4,218.33,8.85975497]
[1736200130388,19.06865748,218.41,218.34,8.85975497]
[1736200130686,27.92841245,218.41,218.34,8.85975497]
[1736200133582,27.92841245,218.41,218.35,6.5561]
[1736200133774,19.06865748,218.41,218.35,6.5561]
[1736200133971,27.92841245,218.41,218.35,6.5561]
[1736200135186,19.06865748,218.41,218.36,8.85975497]
[1736200135692,8.85975497,218.39,218.33,20.0]
[1736200135994,8.85975497,218.37,218.3,15.41585497]
[1736200138189,8.85975497,218.33,218.25,6.2904]
[1736200138492,8.85975497,218.33,218.29,20.0]
[1736200140097,8.85975497,218.33,218.28,20.0]
[1736200140285,8.85975497,218.34,218.28,20.0]
[1736200141411,8.85975497,218.33,218.28,20.0]
[1736200141592,8.85975497,218.32,218.25,15.15015497]
[1736200142289,1.5822,218.37,218.26,8.85975497]
[1736200142290,8.85975497,218.33,218.26,8.85975497]
[1736200142472,1.5822,218.37,218.27,8.85975497]
[1736200142473,8.85975497,218.34,218.27,8.85975497]
[1736200142672,8.85975497,218.34,218.28,8.85975497]
[1736200144002,8.85975497,218.35,218.28,8.85975497]
[1736200144399,8.85975497,218.34,218.28,8.85975497]
[1736200144903,8.85975497,218.34,218.27,8.85975497]
[1736200146615,8.85975497,218.34,218.28,8.85975497]
[1736200147400,8.85975497,218.35,218.28,8.85975497]
[1736200148715,8.85975497,218.34,218.27,8.85975497]
[1736200148878,1.5822,218.37,218.25,15.15015497]
[1736200149200,1.5822,218.37,218.29,8.85975497]
[1736200149201,8.85975497,218.36,218.29,8.85975497]
[1736200149371,8.85975497,218.35,218.28,8.85975497]
[1736200149568,8.85975497,218.34,218.27,8.85975497]
[1736200150286,8.85975497,218.32,218.25,15.15015497]
[1736200150485,8.85975497,218.33,218.26,8.85975497]
[1736200152887,8.85975497,218.34,218.27,8.85975497]
[1736200154908,8.85975497,218.36,218.29,8.85975497]
[1736200157121,8.85975497,218.36,218.25,6.97744545]
[1736200157122,8.85975497,218.35,218.28,8.85975497]
[1736200159132,8.85975497,218.34,218.25,2.06]
[1736200159322,8.85975497,218.33,218.26,8.85975497]
[1736200160318,8.85975497,218.34,218.27,8.85975497]
[1736200161039,8.85975497,218.34,218.28,8.85975497]
[1736200163531,1.6101,218.42,218.33,8.85975497]
[1736200163726,8.85975497,218.4,218.34,8.85975497]
[1736200164601,1.6101,218.42,218.34,8.85975497]
[1736200164797,8.85975497,218.4,218.34,8.85975497]
[1736200165308,10.46985497,218.42,218.35,8.85975497]
[1736200166539,1.6101,218.42,218.36,8.85975497]
[1736200166825,10.46985497,218.42,218.36,8.85975497]
[1736200167725,1.6101,218.42,218.36,8.85975497]
[1736200167934,1.6101,218.48,218.38,8.85975497]
[1736200168116,1.6101,218.48,218.32,14.17738547]
[1736200168117,1.6101,218.48,218.4,8.85975497]
[1736200168430,8.85975497,218.47,218.4,8.85975497]
[1736200168921,8.85975497,218.46,218.39,8.85975497]
[1736200172240,8.85975497,218.45,218.38,8.85975497]
[1736200172532,8.85975497,218.44,218.37,8.85975497]
[1736200173223,8.85975497,218.44,218.35,17.8463]
[1736200173524,8.85975497,218.43,218.36,8.85975497]
[1736200173914,8.85975497,218.44,218.37,8.85975497]
[1736200174320,8.85975497,218.44,218.38,8.85975497]
[1736200175525,8.85975497,218.45,218.38,8.85975497]
[1736200178830,8.85975497,218.44,218.38,8.85975497]
[1736200179331,8.85975497,218.46,218.4,8.85975497]
[1736200181435,8.85975497,218.45,218.39,8.85975497]
[1736200182236,1.6101,218.48,218.39,8.85975497]
[1736200182429,8.85975497,218.45,218.39,8.85975497]
[1736200186437,19.06865748,218.42,218.39,8.85975497]
[1736200189543,19.06865748,218.42,218.41,8.85975497]
[1736200190239,19.06865748,218.42,218.41,32.63663897]
[1736200199445,19.06865748,218.42,218.41,32.88761897]
[1736200199645,17.73447351,218.42,218.41,32.88761897]
[1736200201357,17.73447351,218.42,218.41,32.76212897]
[1736200201727,17.73447351,218.42,218.41,32.88761897]
[1736200202026,14.43388298,218.42,218.41,32.88761897]
[1736200205037,14.43388298,218.42,218.41,32.63663897]
[1736200205564,14.43388298,218.42,218.4,13.25398374]
[1736200205761,14.43388298,218.42,218.41,32.63663897]
[1736200206986,14.43388298,218.42,218.41,23.776884]
[1736200207144,14.43388298,218.42,218.41,32.63663897]
[1736200212763,14.43388298,218.42,218.39,1.87162703]
[1736200212960,14.43388298,218.42,218.39,10.87975497]
[1736200213162,14.43388298,218.42,218.39,8.85975497]
[1736200213666,14.43388298,218.42,218.41,20.0]
[1736200214365,14.43388298,218.42,218.38,2.02]
[1736200215264,23.29363795,218.42,218.36,2.02]
[1736200215451,23.29363795,218.42,218.35,8.85975497]
[1736200215452,8.85975497,218.41,218.35,2.02]
[1736200216448,14.43388298,218.42,218.36,28.85975497]
[1736200217962,14.43388298,218.42,218.37,8.85975497]
[1736200218167,23.29363795,218.42,218.36,20.0]
[1736200218665,8.85975497,218.41,218.34,10.87975497]
[1736200218856,8.85975497,218.4,218.34,2.02]
[1736200219658,8.85975497,218.4,218.33,28.85975497]
[1736200219854,8.85975497,218.4,218.33,20.0]
[1736200220567,8.85975497,218.39,218.33,20.0]
[1736200220967,8.85975497,218.4,218.33,28.85975497]
[1736200221861,8.85975497,218.41,218.34,8.85975497]
[1736200222375,14.43388298,218.42,218.36,8.85975497]
[1736200223756,14.43388298,218.42,218.37,8.85975497]
[1736200223957,14.43388298,218.42,218.39,8.85975497]
[1736200224463,14.43388298,218.42,218.4,8.85975497]
[1736200224776,14.43388298,218.42,218.41,8.85975497]
[1736200224975,14.43388298,218.42,218.38,22.02]
[1736200225274,14.43388298,218.42,218.39,8.85975497]
[1736200225460,14.43388298,218.42,218.4,8.85975497]
[1736200232473,14.43388298,218.42,218.38,10.87975497]
[1736200234475,14.43388298,218.42,218.39,8.85975497]
[1736200236601,14.43388298,218.42,218.38,2.02]
[1736200236888,14.43388298,218.42,218.35,8.85975497]
[1736200236889,23.29363795,218.42,218.35,8.85975497]
[1736200237185,23.29363795,218.42,218.34,2.02]
[1736200237186,8.85975497,218.4,218.34,2.02]
[1736200237381,14.43388298,218.42,218.34,20.0]
[1736200237382,8.85975497,218.39,218.34,20.0]
[1736200237760,8.85975497,218.4,218.34,20.0]
[1736200238054,8.85975497,218.39,218.34,20.0]
[1736200240072,8.85975497,218.4,218.34,20.0]
[1736200240474,8.85975497,218.39,218.34,20.0]
[1736200241372,8.85975497,218.38,218.31,10.87975497]
[1736200241571,8.85975497,218.37,218.31,2.02]
[1736200241968,8.85975497,218.37,218.3,8.85975497]
[1736200243912,8.85975497,218.36,218.29,10.87975497]
[1736200244693,8.85975497,218.37,218.3,8.85975497]
[1736200244879,8.85975497,218.38,218.31,28.85975497]
[1736200247380,8.85975497,218.37,218.31,20.0]
[1736200248570,8.85975497,218.37,218.31,28.85975497]
[1736200248769,8.85975497,218.38,218.31,28.85975497]
[1736200256090,8.85975497,218.37,218.31,20.0]
[1736200256296,11.4453,218.43,218.31,20.0]
[1736200256297,10.39145497,218.36,218.31,20.0]
[1736200256809,8.85975497,218.35,218.31,20.0]
[1736200256987,8.85975497,218.35,218.29,2.02]
[1736200258507,10.39145497,218.36,218.29,10.87975497]
[1736200258696,1.5317,218.36,218.3,8.85975497]
[1736200259339,10.39145497,218.36,218.29,8.85975497]
[1736200260504,8.85975497,218.34,218.25,11.4545]
[1736200260716,8.85975497,218.33,218.26,10.87975497]
[1736200261405,8.85975497,218.34,218.28,8.85975497]
[1736200261606,8.85975497,218.35,218.28,8.85975497]
[1736200264034,8.85975497,218.35,218.29,8.85975497]
[1736200264525,10.39145497,218.36,218.29,8.85975497]
[1736200269225,8.85975497,218.35,218.28,8.85975497]
[1736200282128,8.85975497,218.34,218.27,8.85975497]
[1736200283242,8.85975497,218.33,218.27,8.85975497]
[1736200284539,8.85975497,218.34,218.27,8.85975497]
[1736200284736,8.85975497,218.35,218.28,8.85975497]
[1736200289856,8.85975497,218.35,218.27,8.85975497]
[1736200290071,8.85975497,218.35,218.26,2.02]
[1736200290245,8.85975497,218.31,218.24,10.87975497]
[1736200291366,8.85975497,218.31,218.25,28.85975497]
[1736200291567,8.85975497,218.32,218.26,8.85975497]
[1736200291758,8.85975497,218.33,218.26,8.85975497]
[1736200293760,8.85975497,218.32,218.25,20.0]
[1736200293957,8.85975497,218.32,218.25,28.85975497]
[1736200294257,8.85975497,218.31,218.24,8.85975497]
[1736200295151,8.85975497,218.3,218.24,20.0]
[1736200296449,8.85975497,218.32,218.25,8.85975497]
[1736200296943,8.85975497,218.32,218.24,20.0]
[1736200297346,8.85975497,218.32,218.25,8.85975497]
[1736200297766,1.5317,218.36,218.26,8.85975497]
[1736200298060,8.85975497,218.32,218.26,8.85975497]
[1736200298946,8.85975497,218.32,218.25,8.85975497]
[1736200299979,8.85975497,218.31,218.25,8.85975497]
[1736200301604,8.85975497,218.31,218.24,30.87975497]
[1736200302242,1.5317,218.36,218.27,8.85975497]
[1736200302450,10.39145497,218.36,218.29,8.85975497]